Cogmind - Beta 13 @@@ ROGUE MODE // 2024.04.04 @ 19:58:59 Player: Tarnath Result: Destroyed by H-66 Slayer with Gauss Rifle Performance ------------- Evolutions (4) 2000 Regions Visited (8) 1600 Robots Destroyed (81) 405 Value Destroyed (2732) 2732 Prototype IDs (8) 160 Alien Tech Used (0) 0 Bonus (278) 278 TOTAL SCORE: 7175 Bonus ------- High Alert Combat Kills 250 Follower Combat Kills 35 Friendly Fire -7 Cogmind --------- Core Integrity 0/850 Matter 239/300 Energy 100/100 System Corruption 2% Temperature Cool (0) Movement Core (50) Location -6/Factory Parts ------- > --- POWER (3) -------- (None) > --- PROPULSION (4) --- (None) > --- UTILITY (5) ------ Improved Terrain Scan Processor > --- WEAPON (3) ------- (None) > --- INVENTORY (5) ---- (None) Peak State ------------ > --- POWER ------------ Deuterium Engine Deuterium Engine Light Nuclear Core > --- PROPULSION ------- Cooled VTOL Module Cooled VTOL Module Cooled VTOL Module > --- UTILITY ---------- Small Storage Unit Improved Targeting Computer Hacking Suite Splice Drone Bay > --- WEAPON ----------- Pulse Rifle Gauss Rifle Gauss Cannon > --- INVENTORY -------- Deuterium Engine Deuterium Engine VSS Leg Signal Interpreter Gauss Cannon Gauss Cannon Heavy Missile Launcher [Rating: 50] Favorites ----------- Power Light Nuclear Core Engine Light Ion Engine Power Core Light Nuclear Core Propulsion VSS Leg Treads Light Treads Leg VSS Leg Flight Unit Cooled VTOL Module Utility Improved Targeting Computer Device Splice Drone Bay Storage Small Storage Unit Processor Improved Targeting Computer Hackware Hacking Suite Protection Improved Light Armor Plating Weapon Gauss Cannon Energy Gun EM Pulse Gun Energy Cannon Heavy Ion Cannon Ballistic Gun Gauss Rifle Ballistic Cannon Gauss Cannon Launcher Heavy Missile Launcher Build | -11 -10 -9 -9 -8 -7 -6 -6 -6 ------- Run | Yrd Mat Mat Min Mat Fac Fac Was Fac Slots Evolved 8 | . . 2 . 2 2 2 . . Power 2 | . . . . 1 1 . . . Propulsion 2 | . . 1 . . . 1 . . Utility 3 | . . 1 . 1 . 1 . . Weapon 1 | . . . . . 1 . . . Parts Attached 104 | 6 6 17 3 14 41 7 3 7 Power 20 | 1 1 1 1 2 14 . . . Engine 15 | 1 1 1 1 1 10 . . . Core 5 | . . . . 1 4 . . . Reactor . | . . . . . . . . . Propulsion 22 | 2 . 2 . 5 12 . . 1 Treads 3 | . . 1 . 1 . . . 1 Leg 16 | 2 . 1 . 4 9 . . . Wheel . | . . . . . . . . . Hover . | . . . . . . . . . Flight 3 | . . . . . 3 . . . Utility 29 | 1 5 5 1 3 4 5 3 2 Device 13 | . 4 1 1 2 1 1 2 1 Storage 2 | 1 . 1 . . . . . . Processor 9 | . 1 3 . . 1 3 . 1 Hackware 2 | . . . . 1 1 . . . Protection 3 | . . . . . 1 1 1 . Artifact . | . . . . . . . . . Weapon 33 | 2 . 9 1 4 11 2 . 4 Energy Gun 13 | 2 . 4 . 2 1 1 . 3 Energy Cannon 4 | . . . . . 3 1 . . Ballistic Gun 4 | . . 1 1 . 1 . . 1 Ballistic Cannon 7 | . . . . 2 5 . . . Launcher 5 | . . 4 . . 1 . . . Special Weapon . | . . . . . . . . . Impact Weapon . | . . . . . . . . . Slashing Weapon . | . . . . . . . . . Piercing Weapon . | . . . . . . . . . Special Melee Weapon . | . . . . . . . . . Unidentified Prototypes 6 | . . 1 1 . 3 . 1 . Parts Lost 35 | . . 7 1 2 12 . 6 7 Power 9 | . . 1 1 1 5 . 1 . Propulsion 5 | . . 1 . . 2 . 1 1 Utility 8 | . . 1 . 1 1 . 2 3 Weapon 13 | . . 4 . . 4 . 2 3 Highest Loss Streak 7 | . . 3 1 2 7 . 6 6 To Critical Strikes 2 | . . . . . 1 . 1 . Average Slot Usage (%) 80 | . 95 81 70 86 86 76 41 29 Engine 8 | . 14 8 6 8 8 13 7 . Core 2 | . . . . 3 6 . . . Treads 1 | . . . 11 3 . . . 2 Leg 17 | . 28 24 . 19 17 13 7 . Flight 1 | . . . . . 4 . . . Device 7 | . 8 11 11 12 4 . . 9 Storage 5 | . 14 11 11 9 2 . . . Processor 8 | . 1 7 11 9 9 13 11 5 Hackware 4 | . . . . 3 8 5 . . Protection 1 | . . . . . . 11 3 5 Energy Gun 7 | . 28 14 . 8 3 4 3 4 Energy Cannon 2 | . . . . . 3 5 3 . Ballistic Gun 3 | . . 1 20 3 3 . . . Ballistic Cannon 4 | . . . . 6 9 . . . Naked Turns 33 | . . . . . . . 33 . Heaviest Build 50 | 12 15 17 18 29 50 47 43 16 Greatest Support 60 | 20 20 30 20 42 60 35 35 20 Greatest Overweight (x) 7 | . . . . 6 7 1 5 5 Average Overweight (x) . | . . . . . . . . 1 Largest Inventory Capacity 8 | 8 8 8 8 8 8 5 5 5 Average Capacity 6 | 7 8 8 8 8 6 5 5 5 Most Carried 8 | 1 7 8 8 8 8 2 2 2 Average Carried 4 | . 5 6 7 5 4 . 1 . Final Capacity 8 | 8 8 8 8 8 5 5 5 5 Final Carried 8 | 1 7 8 7 6 . 2 . . Class Distribution -------------------- 50% | Mutant 28% | Gunner 10% | Scavenger-Mutant 6% | Hacker-Gunner Dominant Class ---------------- Mutant | -10/Materials Mutant | -9/Materials Scavenger-Mutant | -9/Mines Mutant | -8/Materials Gunner | -7/Factory Gunner | -6/Factory Gunner | -6/Waste Mutant | -6/Factory Resources | -11 -10 -9 -9 -8 -7 -6 -6 -6 ----------- Run | Yrd Mat Mat Min Mat Fac Fac Was Fac Matter Collected 2077 | 260 60 240 17 23 1124 293 . 60 Remotely 10 | . 10 . . . . . . . Salvage Created 2575 | . 239 943 44 88 1126 75 . 60 Parts 147 | . 12 53 5 9 61 5 . 2 Haulers Intercepted 1 | . . 1 . . . . . . Recyclers Shooed . | . . . . . . . . . Parts Field Recycled . | . . . . . . . . . Retrieved Matter . | . . . . . . . . . Parts Self-Destructed . | . . . . . . . . . Prevented . | . . . . . . . . . Kills | -11 -10 -9 -9 -8 -7 -6 -6 -6 ------- Run | Yrd Mat Mat Min Mat Fac Fac Was Fac Combat Hostiles Destroyed 56 | . 3 15 3 6 27 1 . 1 Guns 23 | . 3 8 3 2 6 . . 1 Cannons 18 | . . . . 3 15 . . . AOE 13 | . . 7 . 1 5 . . . Classes Destroyed 17 | . 3 7 . 2 5 . . . Worker 7 | . . 3 . 1 3 . . . Builder 3 | . . 1 . . 2 . . . Tunneler 1 | . . 1 . . . . . . Hauler 1 | . . 1 . . . . . . Recycler 4 | . 1 3 . . . . . . Mechanic 1 | . . . . . 1 . . . Operator 2 | . . . . 1 1 . . . Watcher 6 | . 2 3 . . 1 . . . Swarmer 15 | . . 3 3 3 6 . . . Grunt 18 | . 3 5 . 2 8 . . . Brawler 1 | . . 1 . . . . . . Duelist 1 | . . . . 1 . . . . Sentry 12 | . . 6 . . 4 1 . 1 Specialist 2 | . . . . . 2 . . . Hunter 2 | . . . . . 2 . . . Programmer 3 | . . . . . 3 . . . Heavy 1 | . . . . . 1 . . . Thug 1 | . . . . . 1 . . . Best Kill Streak 8 | . 2 8 2 3 7 1 . 1 Combat Bots Only 5 | . 2 4 2 3 5 1 . 1 Max Kills in Single Turn 4 | . 1 4 1 2 2 1 . 1 Gunslinging . | . . . . . . . . . Exploded 3 | . . 3 . 1 2 . . . Melee . | . . . . . . . . . Uniques/NPCs Destroyed . | . . . . . . . . . Combat | -11 -10 -9 -9 -8 -7 -6 -6 -6 -------- Run | Yrd Mat Mat Min Mat Fac Fac Was Fac Hostile Shots Fired 566 | . 5 81 18 63 224 18 6 151 Missed 206 | . 1 32 4 18 84 7 . 60 Damage Taken 5804 | . 74 938 116 608 2300 84 214 1470 Core 1808 | . 11 310 25 109 497 . 145 711 Absorbed by Shields . | . . . . . . . . . Regen/Repaired (Parts) 55 | . . . . . 55 . . . Core Remaining (%) 64 | 100 95 . 16 80 29 . . . Volleys Fired 208 | . 9 55 11 28 84 3 2 16 Largest 3 | . 2 2 2 2 3 2 2 2 Hottest 182 | . 80 95 40 107 182 123 123 105 Shots Fired 392 | . 18 85 19 54 189 6 4 17 Gun 225 | . 18 76 19 29 61 3 2 17 Cannon 151 | . . . . 25 121 3 2 . Launcher 16 | . . 9 . . 7 . . . Special . | . . . . . . . . . Kinetic 166 | . . 9 19 28 102 . . 8 Thermal 141 | . . 26 . 26 80 . . 9 Explosive 16 | . . 9 . . 7 . . . Electromagnetic 69 | . 18 41 . . . 6 4 . Robot Hit Streak 12 | . 4 10 4 7 9 3 7 12 Robot Miss Streak 6 | . 1 6 2 4 5 1 . 2 Penetration Max . | . . . . . . . . . Secondary Targets . | . . . . . . . . . Shots Hit Robots 228 | . 11 56 10 29 101 5 4 12 Core Hits 125 | . 7 46 5 11 54 1 . 1 Critical Kills 2 | . . . . . 2 . . . Critical Parts Destroyed 1 | . . . . . . . . 1 Critical Strikes 13 | . . 1 . 3 6 . . 3 Burn 5 | . . 1 . 2 . . . 2 Meltdown 1 | . . . . . 1 . . . Destroy 2 | . . . . . 1 . . 1 Blast 5 | . . . . 1 4 . . . Melee Attacks . | . . . . . . . . . Impact . | . . . . . . . . . Slashing . | . . . . . . . . . Piercing . | . . . . . . . . . Sneak Attacks . | . . . . . . . . . Combat Hostiles . | . . . . . . . . . Follow-up Attacks . | . . . . . . . . . Damage Inflicted 6299 | . 248 1560 71 705 3372 102 7 234 Guns 2122 | . 172 652 71 331 628 37 3 228 Cannons 2211 | . . . . 261 1881 65 4 . Explosions 1935 | . 76 908 . 113 838 . . . Melee . | . . . . . . . . . Ramming 31 | . . . . . 25 . . 6 Kinetic 1815 | . . 56 71 285 1329 . . 74 Thermal 2330 | . 76 500 . 420 1180 . . 154 Explosive 1452 | . . 614 . . 838 . . . Electromagnetic 671 | . 172 390 . . . 102 7 . Impact . | . . . . . . . . . Slashing . | . . . . . . . . . Piercing . | . . . . . . . . . Highest Corruption 6 | . . 6 6 . 2 . . 2 Average Corruption 2 | . . 5 6 . 1 . . 2 Corruption Purged . | . . . . . . . . . Corruption Blocked . | . . . . . . . . . Effects 35 | . . 6 9 . 20 . . . Message Errors 5 | . . 2 1 . 2 . . . Matter Fused 8 | . . . 2 . 6 . . . Heat Flow Errors 3 | . . . . . 3 . . . Energy Discharges 4 | . . . 2 . 2 . . . Data Loss (minor) 10 | . . 3 2 . 5 . . . Misfires 4 | . . 1 1 . 2 . . . Alerts 1 | . . . 1 . . . . . Overload Shots . | . . . . . . . . . Overflow Damage 155 | . 7 106 . 25 5 . . 12 Projectiles 29 | . . . . 25 4 . . . Explosions 126 | . 7 106 . . 1 . . 12 Melee . | . . . . . . . . . Knockbacks 11 | . . . . 4 7 . . . Impact . | . . . . . . . . . Kinetic 11 | . . . . 4 7 . . . Secondary . | . . . . . . . . . Self-Inflicted Damage 635 | . 30 202 . 18 . . . 385 Shots 12 | . 1 5 . 1 . . . 5 Rammed 4 | . . . . . . . . 4 Targets Rammed 7 | . . . . . 3 . . 4 Kicked 3 | . . . . . 3 . . . Crushed . | . . . . . . . . . Highest Temperature 667 | . 90 199 . 238 667 150 48 38 Average Temperature 136 | . 35 54 . 75 190 77 24 13 Received Heat Transfer 1056 | . 24 240 . 207 507 24 . 54 Effects 36 | . . . . . 36 . . . Shutdowns 12 | . . . . . 12 . . . Energy Bleed 3 | . . . . . 3 . . . Interference 6 | . . . . . 6 . . . Matter Decay 3 | . . . . . 3 . . . Short Circuit 6 | . . . . . 6 . . . Damage (minor) 5 | . . . . . 5 . . . Damage (core) 1 | . . . . . 1 . . . Siege Activations . | . . . . . . . . . Robots Corrupted 1 | . . . . . . 1 . . Combat Hostiles 1 | . . . . . . 1 . . Parts Fried 1 | . . 1 . . . . . . Impact Corruptions . | . . . . . . . . . Robots Melted 1 | . . . . . 1 . . . Combat Hostiles 1 | . . . . . 1 . . . Parts Melted 3 | . . 1 . 1 1 . . . Heat Transferred 4280 | . 100 916 . 864 1850 . . 550 Parts Sabotaged . | . . . . . . . . . Parts Stolen . | . . . . . . . . . Parts Stripped . | . . . . . . . . . Power Chain Reactions 4 | . 2 2 . . . . . . Alert | -11 -10 -9 -9 -8 -7 -6 -6 -6 ------- Run | Yrd Mat Mat Min Mat Fac Fac Was Fac Peak Influence 786 | . 135 624 353 428 786 430 150 184 Initial 385 | . . 56 243 137 137 385 150 49 Average 246 | . 52 289 331 244 272 386 120 78 Maximum Alert Level 3 | . . 2 1 2 3 2 . . Low Security (%) 45 | 100 100 32 . 44 41 . 100 100 Level 1 38 | . . 38 100 50 31 94 . . Level 2 13 | . . 28 . 4 20 5 . . Level 3 2 | . . . . . 6 . . . Level 4 . | . . . . . . . . . Level 5 . | . . . . . . . . . High Security . | . . . . . . . . . Max Security . | . . . . . . . . . Squads Dispatched 16 | . 1 4 . 2 9 . . . Investigation 5 | . 1 2 . 1 1 . . . Extermination 2 | . . . . . 2 . . . Reinforcement 9 | . . 2 . 1 6 . . . Assault . | . . . . . . . . . Garrison . | . . . . . . . . . Intercept . | . . . . . . . . . Searches Triggered . | . . . . . . . . . Construction Impeded . | . . . . . . . . . Haulers Reinforced . | . . . . . . . . . Active Scanning Responses . | . . . . . . . . . Cargo Convoy Interrupts . | . . . . . . . . . Stealth | -11 -10 -9 -9 -8 -7 -6 -6 -6 --------- Run | Yrd Mat Mat Min Mat Fac Fac Was Fac Distress Signals 6 | . . 1 . 4 1 . . . Communications Jammed . | . . . . . . . . . Distress Signals . | . . . . . . . . . Times Spotted 106 | . 5 22 6 24 40 1 5 3 Peak Tracking Total 8 | . 2 7 4 8 5 1 5 2 Tactical Retreats 6 | . . 1 2 1 2 . . . Traps | -11 -10 -9 -9 -8 -7 -6 -6 -6 ------- Run | Yrd Mat Mat Min Mat Fac Fac Was Fac Traps Triggered 4 | . . . . . 3 1 . . Indirectly . | . . . . . . . . . Trap Hack Attempts . | . . . . . . . . . Triggered . | . . . . . . . . . Disarmed . | . . . . . . . . . Reprogrammed . | . . . . . . . . . Reused . | . . . . . . . . . Traps Extracted . | . . . . . . . . . Installed . | . . . . . . . . . Triggered . | . . . . . . . . . Machines | -11 -10 -9 -9 -8 -7 -6 -6 -6 ---------- Run | Yrd Mat Mat Min Mat Fac Fac Was Fac Machines Disabled 30 | . 1 5 . 6 12 . . 6 Max in Single Turn 6 | . 1 3 . 2 3 . . 6 Machines Repaired . | . . . . . . . . . Machines Dismantled . | . . . . . . . . . Machines Sabotaged . | . . . . . . . . . Overloaded Fab Kills . | . . . . . . . . . Hacking | -11 -10 -9 -9 -8 -7 -6 -6 -6 --------- Run | Yrd Mat Mat Min Mat Fac Fac Was Fac Machines Accessed 18 | . 2 4 1 4 7 . . . Terminals 14 | . 2 3 . 4 5 . . . Fabricators 1 | . . . . . 1 . . . Repair Stations 1 | . . . . . 1 . . . Recycling Units . | . . . . . . . . . Scanalyzers 1 | . . 1 . . . . . . Garrison Access . | . . . . . . . . . Total Hacks 60 | . 11 16 1 15 17 . . . Successful 31 | . 5 9 1 8 8 . . . Failed 29 | . 6 7 . 7 9 . . . Catastrophic 4 | . 1 . . 1 2 . . . Database Lockouts . | . . . . . . . . . Manual 6 | . 6 . . . . . . . Terminals 53 | . 11 14 . 15 13 . . . Fabricators 2 | . . . . . 2 . . . Repair Stations 2 | . . . . . 2 . . . Recycling Units . | . . . . . . . . . Scanalyzers 2 | . . 2 . . . . . . Garrison Access . | . . . . . . . . . Terminal Hacks 25 | . 5 7 1 8 4 . . . Record 10 | . 4 . . 3 3 . . . Robot Analysis 1 | . 1 . . . . . . . Prototype ID Bank 1 | . . 1 . . . . . . Open Door 1 | . . . 1 . . . . . Open DSF 1 | . . . . . 1 . . . Emergency Access Points 2 | . . 1 . 1 . . . . Alert Level 2 | . . . . 2 . . . . Locate Traps 1 | . . 1 . . . . . . Dispatch Records 1 | . . 1 . . . . . . Transport Status 1 | . . . . 1 . . . . Assault Status 1 | . . 1 . . . . . . Hauler Manifests 1 | . . . . 1 . . . . Registered Components 1 | . . 1 . . . . . . Zone Layout 1 | . . 1 . . . . . . Fabricator Hacks 2 | . . . . . 2 . . . Network Status 1 | . . . . . 1 . . . Load Schematic 1 | . . . . . 1 . . . Repair Station Hacks 2 | . . . . . 2 . . . Scan Component 1 | . . . . . 1 . . . Repair 1 | . . . . . 1 . . . Recycling Unit Hacks . | . . . . . . . . . Scanalyzer 2 | . . 2 . . . . . . Insert Component 1 | . . 1 . . . . . . Analyze 1 | . . 1 . . . . . . Garrison Access Hacks . | . . . . . . . . . Unauthorized Hacks . | . . . . . . . . . Terminals . | . . . . . . . . . Fabricators . | . . . . . . . . . Repair Stations . | . . . . . . . . . Recycling Units . | . . . . . . . . . Scanalyzers . | . . . . . . . . . Garrison Access . | . . . . . . . . . Data Cores Recovered . | . . . . . . . . . Used . | . . . . . . . . . Hacking Detections 16 | . 2 4 . 4 6 . . . Full Trace Events 5 | . 1 2 . 1 1 . . . Feedback Events 1 | . . 1 . . . . . . Corruption 1 | . . 1 . . . . . . Feedback Blocked . | . . . . . . . . . Robot Schematics Acquired . | . . . . . . . . . Robots Built . | . . . . . . . . . Authchips . | . . . . . . . . . Time . | . . . . . . . . . Total Robot Build Rating . | . . . . . . . . . Part Schematics Acquired 1 | . . 1 . . . . . . Parts Built . | . . . . . . . . . Authchips . | . . . . . . . . . Time . | . . . . . . . . . Total Part Build Rating . | . . . . . . . . . Parts Repaired 1 | . . . . . 1 . . . Time 22 | . . . . . 22 . . . Parts Recycled . | . . . . . . . . . Recycled Matter . | . . . . . . . . . Retrieved Matter . | . . . . . . . . . Retrieved Components . | . . . . . . . . . Parts Scanalyzed 1 | . . 1 . . . . . . Part Schematics Acquired 1 | . . 1 . . . . . . Parts Damaged . | . . . . . . . . . Bothacking | -11 -10 -9 -9 -8 -7 -6 -6 -6 ------------ Run | Yrd Mat Mat Min Mat Fac Fac Was Fac Used RIF Installer . | . . . . . . . . . Robots Hacked . | . . . . . . . . . Non-combat . | . . . . . . . . . Combat . | . . . . . . . . . Robot Hacks Applied . | . . . . . . . . . Relay Couplers Released . | . . . . . . . . . Fabnet Peak Effective % . | . . . . . . . . . Robots Rewired . | . . . . . . . . . Allies Hacked . | . . . . . . . . . Hacks Repelled . | . . . . . . . . . Allies | -11 -10 -9 -9 -8 -7 -6 -6 -6 -------- Run | Yrd Mat Mat Min Mat Fac Fac Was Fac Total Allies 3 | . . . . 1 1 . 1 . Largest Group 1 | . . . . 1 . . 1 . Highest-Rated Group 31 | . . . . 16 . . 31 . Highest-Rated Ally 31 | . . . . 16 . . 31 . Total Orders . | . . . . . . . . . Ally Attacks 27 | . . . . 15 6 . 6 . Total Damage 229 | . . . . 94 6 . 129 . Kills 2 | . . . . 1 1 . . . Allies Corrupted . | . . . . . . . . . Allies Melted . | . . . . . . . . . Intel | -11 -10 -9 -9 -8 -7 -6 -6 -6 ------- Run | Yrd Mat Mat Min Mat Fac Fac Was Fac Robot Analysis Total 1 | . 1 . . . . . . . Derelict Logs Recovered . | . . . . . . . . . Drone Launches 18 | . . . 6 6 6 . . . Drone Recoveries 18 | . . . . 12 6 . . . Exploration | -11 -10 -9 -9 -8 -7 -6 -6 -6 ------------- Run | Yrd Mat Mat Min Mat Fac Fac Was Fac Turns Passed 4429 | 61 392 713 311 474 1800 313 118 247 Spaces Moved 2700 | 45 287 434 176 312 1047 153 107 139 Core 183 | 3 . . . 5 7 . 76 92 Treads 294 | . . 15 176 56 . . . 47 Legs 1950 | 42 287 419 . 251 767 153 31 . Wheels . | . . . . . . . . . Hover . | . . . . . . . . . Flight 273 | . . . . . 273 . . . Fastest Speed 29 | 50 120 120 160 90 29 125 50 50 Average Speed 132 | 115 120 121 160 110 136 190 101 143 Slowest Speed 400 | 120 120 160 160 350 400 195 300 300 Overloaded Moves . | . . . . . . . . . Propulsion Burnouts . | . . . . . . . . . Robots Hopped 3 | . . . . . 3 . . . Cave-ins Triggered . | . . . . . . . . . Exploration Rate (%) 31 | 4 50 47 39 30 34 5 68 3 Regions Visited 8 Branch Regions 1 Pre-discovered Areas . | . . . . . . . . . Known Exits Taken . | . . . . . . . . . Unknown Exits Taken 6 | 1 1 1 1 1 1 . . . Scrap Searched . | . . . . . . . . . Spaces Dug . | . . . . . . . . . Terrain Destroyed 347 | . 12 102 . 27 144 . . 62 Melee . | . . . . . . . . . Projectile 29 | . . . . 5 22 . . 2 AOE 318 | . 12 102 . 22 122 . . 60 Terrain Rammed . | . . . . . . . . . Walls Destroyed . | . . . . . . . . . Machines Disabled . | . . . . . . . . . Actions | -11 -10 -9 -9 -8 -7 -6 -6 -6 --------- Run | Yrd Mat Mat Min Mat Fac Fac Was Fac Total 3214 | 51 318 544 191 391 1270 170 111 168 Wait 65 | . 2 9 . 18 36 . . . Move 2687 | 44 286 433 175 311 1040 153 106 139 Hop 3 | . . . . . 3 . . . Pick Up 54 | 1 9 14 1 5 23 . . 1 Fast Attach 54 | 6 1 4 1 8 21 7 1 5 Attach 49 | . 4 13 2 6 20 . 2 2 Detach 31 | . 4 6 . 7 7 6 . 1 Swap 1 | . 1 . . . . . . . Drop 55 | . 2 10 1 8 33 1 . . Fire 208 | . 9 55 11 28 84 3 2 16 Melee . | . . . . . . . . . Ram 4 | . . . . . . . . 4 Kick 3 | . . . . . 3 . . . Crush . | . . . . . . . . . Escape Stasis . | . . . . . . . . . Rewire . | . . . . . . . . . Trap . | . . . . . . . . . Miscellaneous . | . . . . . . . . . Route ------- -11/Scrapyard -10/Materials (discovered 3 exits: *Mat x2 / [*Min]) -9/Materials (discovered 2 exits: *Mat / *Min) -9/Mines -8/Materials -7/Factory -6/Factory -6/Waste -6/Factory History --------- Turn | Location | Event 4 | -11/Scrapyard | Discovered new exit (range 16) 62 | -11/Scrapyard | Entered Materials 233 | -10/Materials | Discovered new exit (range 17) 301 | -10/Materials | Build established: Mutant 305 | -10/Materials | Discovered new exit (range 6) 412 | -10/Materials | Discovered new exit (range 7) 454 | -10/Materials | Entered another Materials area 454 | -9/Materials | Evolved 2 slots: Propulsion x1, Utility x1 901 | -9/Materials | Lost 3 parts (1p1u1w) 970 | -9/Materials | Core integrity fell below 50% 1064 | -9/Materials | Discovered new exit (range 8) 1152 | -9/Materials | Discovered new exit (range 9) 1167 | -9/Materials | Entered Mines 1246 | -9/Mines | Core integrity fell below 20% 1338 | -9/Mines | Found the Drone Emporium 1344 | -9/Mines | Found Prototype Device 1346 | -9/Mines | Identified Splice Drone Bay 1443 | -9/Mines | Build established: Scavenger-Mutant 1456 | -9/Mines | Discovered new exit (range 13) 1478 | -9/Mines | Entered Materials 1478 | -8/Materials | Accompanied by 6 allies 1478 | -8/Materials | Evolved 2 slots: Power x1, Utility x1 1889 | -8/Materials | Build established: Mutant 1938 | -8/Materials | Discovered new exit (range 16) 1952 | -8/Materials | Entered Factory 1952 | -7/Factory | Evolved 2 slots: Power x1, Weapon x1 2502 | -7/Factory | Build established: Gunner 3276 | -7/Factory | Repaired Hvy. Ion Cannon 3656 | -7/Factory | Core integrity fell below 50% 3682 | -7/Factory | Discovered new exit (range 15) 3702 | -7/Factory | Lost 7 parts (2p2n1u2w) 3752 | -7/Factory | Entered another Factory area 3752 | -6/Factory | Evolved 2 slots: Propulsion x1, Utility x1 4065 | -6/Factory | Sucked down chute 4065 | -6/Factory | Entered Waste 4066 | -6/Waste | Met a frightened Derelict 4095 | -6/Waste | Spotted C-40 Crusher 4097 | -6/Waste | Spotted C-40 Crusher 4121 | -6/Waste | Spotted C-40 Crusher 4129 | -6/Waste | Crushed by Compactor (1 part destroyed, 1 dropped) 4130 | -6/Waste | Spotted C-40 Crusher 4130 | -6/Waste | Crushed by Compactor (1 part destroyed, 2 dropped) 4134 | -6/Waste | Spotted C-40 Crusher 4137 | -6/Waste | Crushed by Compactor (1 part destroyed, 2 dropped) 4137 | -6/Waste | Crushed by Compactor (1 part destroyed, 1 dropped) 4159 | -6/Waste | Crushed by Compactor (1 part destroyed) 4170 | -6/Waste | Spotted C-40 Crusher 4174 | -6/Waste | Discovered new exit (range 15) 4183 | -6/Waste | Entered Factory 4190 | -6/Factory | Lost 6 parts (1p1n2u2w) 4409 | -6/Factory | Core integrity fell below 50% 4418 | -6/Factory | Core integrity fell below 20% 4422 | -6/Factory | Build established: Mutant 4430 | -6/Factory | Destroyed by H-66 Slayer with Gauss Rifle Last Messages --------------- Slug penetrates H-66 Slayer. Penetrated by Slug. EM Disruption Field destroyed. Slug penetrates H-66 Slayer. Slug penetrates Wall. Penetrated by Slug. Slug penetrates Wall. Coil Gun destroyed. Penetrated by Slug. Slug penetrates H-66 Slayer. Slammed into H-66 Slayer. Penetrated by Slug. Slug penetrates H-66 Slayer. Slammed into H-66 Slayer. Penetrated by Slug. Slammed into H-66 Slayer. Destabilizing: System corrupted (+2). Slammed into H-66 Slayer. Broken Gatling Laser destroyed. [Achievement: 5k Club] Map ----- +----------------------------------------------------+ | | | | | | | | | | | | | | | | | | | | | | | | | | | | | | | | | ????????????????????????????????##???????????????? | | ??????????????????????????##### ####????????????? | | ??????????????????????????# #????????????? | | ?????????????????????######;; ; #????????????? | | ?????????????????????# ##???????????? | | ?????????????????????# #???????????? | | ?????????????????????# ##???????????? | | ??????+####+########## #???????????? | | ?????# # h ##??????????? | | ?????# # @ #?????????? | | ?????# /h ####?????????? | | ?????# # #????????????? | | ???? # #???????????? | | ??############## # ##???????????? | | ??# # # #???????????? | | ??# # # ##???????????? | | ??# # ###### #????????????? | | ??# # # ; #????????????? | | ??# + / ; #????????????? | | ??# # # ###????????????? | | ??# # # #??????????????? | | ??# # # #??????????????? | | ??# ####### """"" #??????????????? | | ??# # # """"" #??????????????? | | ??# # "" # """ #??????????????? | | ??# # """# #??????????????? | | ############+### R"# #??????????????? | | # """# #??????????????? | | + # #??????????????? | | # """ ##############??????????????? | | ###+############ """ #???????????????????????????? | | #?# """ #???????????????????????????? | | #?# #???????????????????????????? | | #?# ! #???????????????????????????? | +----------------------------------------------------+ Best States ------------- Heat Dissipation 37 Energy Generation 36 Energy Capacity 625 Matter Stores 300 Matter Capacity 300 Sight Range 22 Terrain Scan Density 110 Additional Mass Support 9 Armor Coverage 300 Resistance: EM 25 Evasion (%) 64 Targeting Accuracy 16 Recoil Reduction 2 Particle Charging 20 Offensive Hacking 20 Item Schematics ----------------- Tractor Beam | -9/Materials | Scanalyzed Robot Schematics ------------------ None Fabricated ------------ Nothing Alien Tech Used ----------------- None Achievements -------------- 5k Club Error 47 It's Just You Librarian Made in Tau Ceti IV Maybe Next Time I'll Detach My Launcher Oops Part-time Mechanic Power Corrupts Release The Drones! Remodeling Serviceable Loadout Storm Trooper Challenges ------------ None Game ------ Seed BiometalMissileLauncher Manual? 0 Play Time 01:21:05 Cumulative 2.5 hours Start 2024.04.04 @ 17:59:42 End 2024.04.04 @ 19:58:59 Sessions 1 Manual Loads 0 Difficulty Rogue Special Mode None Game No. 5 Rogue 5 Adventurer 0 Explorer 0 Win Type - Total 0 Types 0/0/0/0/0/0/0/0/0 Lore% 2 Gallery% 7 Achievement% 8 Wizard Run 0 Options --------- Layout 1 ASCII 0 Keyboard 1 Movement Numpad Keybinds 0 Fullscreen 1 Font 32/SmallcapsGlow Map View 77x35 Zoom Use 0% Tactical HUD 0 Map Filters NONE Filters NONE Steam 1 RUN: d7ad1e66-e8d3-4f34-8907-eb940d99f856